Cogmind - Beta 12 @@@ ROGUE MODE // 2023.04.09 @ 16:25:43 Player: dhtilly Result: Destroyed by Y-45 Defender with Beam Rifle Performance ------------- Evolutions (2) 1000 Regions Visited (6) 1200 Robots Destroyed (141) 705 Value Destroyed (3794) 3794 Prototype IDs (8) 160 Alien Tech Used (0) 0 Bonus (427) 427 TOTAL SCORE: 7286 Bonus ------- High Alert Combat Kills 284 Follower Combat Kills 143 Cogmind --------- Core Integrity 0/550 Matter 280/300 Energy 238/280 System Corruption 2% Temperature Hot (264) Movement Treading (237) Ox1 Location -8/Storage Parts ------- > --- POWER (1) -------- Heavy Ion Engine > --- PROPULSION (4) --- Armored Treads Advanced Treads Armored Huge Wheel > --- UTILITY (4) ------ Improved Heat Sink High-capacity Storage Unit Heavy Armor Plating > --- WEAPON (2) ------- Heavy Particle Cannon Heavy Particle Cannon > --- INVENTORY (20) --- Nuclear Core Light Treads Armored Wheel Armored Huge Wheel Compact Matter Pod (150) Experimental Sensor Array Improved Signal Interpreter Improved Signal Interpreter Seismic Detector Improved Targeting Computer Particle Charger Hardened Medium Armor Plating Hardlight Generator Improved Shield Generator Hacking Suite Rocket Launcher Great Maul Makeshift Hammer Peak State ------------ > --- POWER ------------ Heavy Ion Engine > --- PROPULSION ------- Advanced Treads Advanced Treads Armored Huge Wheel > --- UTILITY ---------- Improved Heat Sink High-capacity Storage Unit Hardened Medium Armor Plating Recalibrator > --- WEAPON ----------- Heavy Particle Cannon Ion Cannon > --- INVENTORY -------- Nuclear Core Armored Treads Advanced Treads Armored Wheel Armored Huge Wheel Improved Heat Sink Compact Matter Pod Experimental Sensor Array Improved Signal Interpreter Improved Signal Interpreter Improved Targeting Computer Heavy Armor Plating Hardlight Generator Improved Shield Generator Hacking Suite Heavy Particle Cannon Rocket Launcher Makeshift Hammer [Rating: 40] Favorites ----------- Power Heavy Ion Engine Engine Heavy Ion Engine Propulsion Wheel Treads Light Treads Wheel Wheel Utility High-capacity Storage Unit Device Improved Heat Sink Storage High-capacity Storage Unit Processor Machine Analyzer Hackware Hacking Suite Protection Layered Light Armor Plating Weapon Ion Cannon Energy Gun EM Shotgun Energy Cannon Ion Cannon Ballistic Gun Autogun Launcher Rocket Launcher Impact Weapon Makeshift Hammer Build | -11 -10 -10 -9 -9 -8 -8 ------- Run | Jun Mat Min Mat Min Mat Sto Slots Evolved 4 | . . . 2 . 2 . Power . | . . . . . . . Propulsion 2 | . . . 2 . . . Utility 2 | . . . . . 2 . Weapon . | . . . . . . . Parts Attached 156 | 6 12 18 48 10 50 12 Power 11 | 1 . 2 5 . 2 1 Engine 11 | 1 . 2 5 . 2 1 Core . | . . . . . . . Reactor . | . . . . . . . Propulsion 63 | 2 4 9 25 2 14 7 Treads 30 | . 1 1 16 . 8 4 Leg . | . . . . . . . Wheel 33 | 2 3 8 9 2 6 3 Hover . | . . . . . . . Flight . | . . . . . . . Utility 30 | 1 3 1 3 4 15 3 Device 14 | . 1 . 2 1 8 2 Storage 4 | 1 2 . 1 . . . Processor 2 | . . . . . 2 . Hackware 1 | . . . . . 1 . Protection 9 | . . 1 . 3 4 1 Artifact . | . . . . . . . Weapon 52 | 2 5 6 15 4 19 1 Energy Gun 16 | . 5 2 3 . 6 . Energy Cannon 10 | . . . . . 9 1 Ballistic Gun 19 | 2 . 2 11 3 1 . Ballistic Cannon . | . . . . . . . Launcher 3 | . . . 1 . 2 . Special Weapon . | . . . . . . . Impact Weapon 4 | . . 2 . 1 1 . Slashing Weapon . | . . . . . . . Piercing Weapon . | . . . . . . . Special Melee Weapon . | . . . . . . . Unidentified Prototypes 7 | . . . 4 . 3 . Parts Lost 25 | . 4 8 1 1 6 5 Power 3 | . . 2 . . 1 . Propulsion 11 | . 2 2 1 . 3 3 Utility 4 | . . 1 . 1 1 1 Weapon 7 | . 2 3 . . 1 1 Highest Loss Streak 6 | . 2 6 1 1 2 3 To Critical Strikes . | . . . . . . . Average Slot Usage (%) 95 | . 89 98 99 99 96 84 Engine 10 | . 14 13 11 11 8 8 Treads 15 | . . 3 21 22 18 11 Wheel 19 | . 26 23 21 21 14 15 Device 8 | . 4 4 5 5 12 16 Storage 10 | . 14 14 11 11 9 9 Processor 2 | . . . . . 5 . Protection 6 | . . 9 5 4 7 6 Energy Gun 7 | . 26 15 2 . 6 . Energy Cannon 5 | . . . . . 11 18 Ballistic Gun 7 | . 1 7 19 21 . . Naked Turns . | . . . . . . . Heaviest Build 76 | 14 32 32 57 62 72 76 Greatest Support 87 | 26 26 26 20 20 87 40 Greatest Overweight (x) 5 | . 2 3 5 3 4 2 Average Overweight (x) 1 | . . 1 1 2 1 1 Largest Inventory Capacity 20 | 8 15 15 20 20 20 20 Average Capacity 18 | 7 9 15 19 20 20 20 Most Carried 20 | 4 10 15 20 20 20 20 Average Carried 17 | 3 7 12 18 19 19 17 Final Capacity 20 | 8 15 15 20 20 20 20 Final Carried 20 | 4 10 15 20 20 20 19 Class Distribution -------------------- 80% | Mutant 19% | Scavenger-Mutant Dominant Class ---------------- Mutant | -10/Materials Mutant | -10/Mines Scavenger-Mutant | -9/Materials Mutant | -9/Mines Mutant | -8/Materials Mutant | -8/Storage Resources | -11 -10 -10 -9 -9 -8 -8 ----------- Run | Jun Mat Min Mat Min Mat Sto Matter Collected 2676 | 205 175 211 874 412 712 87 Remotely . | . . . . . . . Salvage Created 5205 | . 554 266 920 413 1738 1314 Parts 321 | . 42 18 84 17 107 53 Haulers Intercepted 15 | . 2 . 5 . 4 4 Recyclers Shooed 2 | . . . 1 . . 1 Parts Field Recycled . | . . . . . . . Retrieved Matter . | . . . . . . . Parts Self-Destructed . | . . . . . . . Prevented . | . . . . . . . Kills | -11 -10 -10 -9 -9 -8 -8 ------- Run | Jun Mat Min Mat Min Mat Sto Combat Hostiles Destroyed 112 | . 10 15 23 9 36 19 Guns 61 | . 9 11 20 9 12 . Cannons 33 | . . . . . 14 19 AOE 14 | . . 4 3 . 7 . Classes Destroyed 17 | . 7 2 2 . 4 2 Worker 6 | . 2 1 2 1 . . Builder 2 | . . . 2 . . . Tunneler 2 | . . 1 . . 1 . Hauler 15 | . 2 . 5 . 4 4 Recycler 3 | . . . . . 2 1 Mechanic 1 | . 1 . . . . . Operator 1 | . 1 . . . . . Watcher 5 | . 1 . 2 . 1 1 Swarmer 37 | . 3 8 16 . 10 . Grunt 37 | . 7 1 . 9 11 9 Brawler 1 | . . . . . . 1 Duelist 1 | . . . . . . 1 Sentry 24 | . . . 7 . 9 8 Specialist 4 | . . . . . 4 . Hunter 1 | . . . . . 1 . Heavy 1 | . . . . . 1 . Assembled 6 | . . 6 . . . . Best Kill Streak 6 | . 4 5 5 4 5 6 Combat Bots Only 5 | . 3 5 4 3 4 4 Max Kills in Single Turn 4 | . 2 4 2 2 4 1 Gunslinging . | . . . . . . . Exploded 4 | . . 4 2 . 3 . Melee . | . . . . . . . Uniques/NPCs Destroyed . | . . . . . . . Combat | -11 -10 -10 -9 -9 -8 -8 -------- Run | Jun Mat Min Mat Min Mat Sto Damage Taken 5330 | . 520 559 865 256 1985 1145 Core 928 | . 120 125 96 30 417 140 Absorbed by Shields 108 | . . . . . 76 32 Regen/Repaired (Parts) 632 | . 25 . 103 . 279 225 Core Remaining (%) 56 | 100 . 2 . 68 . . Volleys Fired 365 | . 34 24 73 20 136 78 Largest 2 | . 2 2 2 2 2 2 Hottest 150 | . 90 90 81 46 138 150 Shots Fired 666 | . 64 44 139 40 239 140 Gun 388 | . 64 44 136 40 104 . Cannon 271 | . . . . . 131 140 Launcher 7 | . . . 3 . 4 . Special . | . . . . . . . Kinetic 180 | . 10 9 117 40 4 . Thermal 390 | . . . 19 . 231 140 Explosive 7 | . . . 3 . 4 . Electromagnetic 89 | . 54 35 . . . . Robot Hit Streak 17 | . 16 10 10 10 15 17 Robot Miss Streak 6 | . 3 6 3 2 3 2 Penetration Max . | . . . . . . . Secondary Targets 3 | . . . 1 2 . . Max Gunslinging Chain 1 | . . . 1 1 . . Shots Hit Robots 427 | . 52 32 91 26 129 97 Core Hits 207 | . 31 25 45 15 56 35 Critical Kills 2 | . . . 1 . 1 . Critical Parts Destroyed 1 | . . 1 . . . . Critical Strikes 7 | . . 1 1 . 5 . Burn 4 | . . . . . 4 . Meltdown 1 | . . . . . 1 . Destroy 1 | . . . 1 . . . Smash 1 | . . 1 . . . . Melee Attacks 8 | . . 6 . 1 1 . Impact 8 | . . 6 . 1 1 . Slashing . | . . . . . . . Piercing . | . . . . . . . Sneak Attacks . | . . . . . . . Combat Hostiles . | . . . . . . . Follow-up Attacks . | . . . . . . . Damage Inflicted 9033 | . 924 617 1548 419 3009 2516 Guns 4270 | . 703 311 1401 419 1436 . Cannons 3681 | . . . . . 1166 2515 Explosions 990 | . 221 215 147 . 407 . Melee 91 | . . 91 . . . . Ramming 1 | . . . . . . 1 Kinetic 1758 | . 73 59 1170 419 37 . Thermal 5747 | . 221 215 231 . 2565 2515 Explosive 554 | . . . 147 . 407 . Electromagnetic 882 | . 630 252 . . . . Impact 91 | . . 91 . . . . Slashing . | . . . . . . . Piercing . | . . . . . . . Highest Corruption 2 | . . . 2 2 . 2 Average Corruption 2 | . . . 2 2 . 2 Corruption Purged . | . . . . . . . Corruption Blocked . | . . . . . . . Effects 30 | . . . 13 11 . 6 Message Errors 9 | . . . 4 2 . 3 Matter Fused 7 | . . . 4 3 . . Heat Flow Errors 5 | . . . 1 3 . 1 Energy Discharges 4 | . . . 2 1 . 1 Data Loss (minor) 3 | . . . 1 1 . 1 Data Loss (major) 1 | . . . . 1 . . Misfires 1 | . . . 1 . . . Overload Shots . | . . . . . . . Overflow Damage 201 | . 20 140 . . 21 20 Projectiles 26 | . . . . . 6 20 Explosions 126 | . 20 91 . . 15 . Melee 49 | . . 49 . . . . Knockbacks 1 | . . 1 . . . . Impact 1 | . . 1 . . . . Kinetic . | . . . . . . . Secondary . | . . . . . . . Self-Inflicted Damage 282 | . 144 103 18 . 17 . Shots 8 | . 3 2 1 . 2 . Rammed 1 | . . . . . . 1 Targets Rammed 1 | . . . . . . 1 Kicked . | . . . . . . . Crushed . | . . . . . . . Highest Temperature 561 | . 274 150 144 271 561 366 Average Temperature 75 | . 91 43 46 70 66 109 Received Heat Transfer 1661 | . 201 . 198 162 525 575 Effects 14 | . 2 . . . 7 5 Energy Bleed 2 | . . . . . . 2 Interference 7 | . 2 . . . 2 3 Matter Decay 2 | . . . . . 2 . Short Circuit 1 | . . . . . 1 . Damage (core) 2 | . . . . . 2 . Siege Activations . | . . . . . . . Robots Corrupted 1 | . 1 . . . . . Combat Hostiles 1 | . 1 . . . . . Parts Fried 3 | . 3 . . . . . Impact Corruptions 1 | . . 1 . . . . Robots Melted 3 | . . . . . 3 . Combat Hostiles 3 | . . . . . 3 . Parts Melted 26 | . . . 2 . 16 8 Heat Transferred 9663 | . 200 250 592 . 4921 3700 Parts Sabotaged . | . . . . . . . Parts Stolen . | . . . . . . . Parts Stripped . | . . . . . . . Power Chain Reactions 2 | . 2 . . . . . Missiles Intercepted . | . . . . . . . Alert | -11 -10 -10 -9 -9 -8 -8 ------- Run | Jun Mat Min Mat Min Mat Sto Peak Influence 675 | . 249 206 530 379 624 675 Initial 249 | . . 5 15 175 83 249 Average 249 | . 119 63 305 229 269 476 Maximum Alert Level 2 | . 1 1 2 1 2 2 Low Security (%) 49 | 100 93 99 19 26 53 . Level 1 27 | . 6 . 58 73 13 26 Level 2 23 | . . . 22 . 32 73 Level 3 . | . . . . . . . Level 4 . | . . . . . . . Level 5 . | . . . . . . . High Security . | . . . . . . . Max Security . | . . . . . . . Squads Dispatched 12 | . 2 1 . . 5 4 Investigation 3 | . 1 1 . . 1 . Extermination . | . . . . . . . Reinforcement 5 | . 1 . . . 4 . Assault . | . . . . . . . Garrison 4 | . . . . . . 4 Intercept . | . . . . . . . Searches Triggered . | . . . . . . . Construction Impeded 1 | . . . . . 1 . Haulers Reinforced . | . . . . . . . Active Scanning Responses . | . . . . . . . Cargo Convoy Interrupts . | . . . . . . . Stealth | -11 -10 -10 -9 -9 -8 -8 --------- Run | Jun Mat Min Mat Min Mat Sto Distress Signals 7 | . 1 . 1 . 3 2 Communications Jammed . | . . . . . . . Distress Signals . | . . . . . . . Times Spotted 157 | . 21 16 36 8 52 24 Peak Tracking Total 7 | . 3 4 6 3 5 7 Tactical Retreats 8 | . 3 . . 1 2 2 Traps | -11 -10 -10 -9 -9 -8 -8 ------- Run | Jun Mat Min Mat Min Mat Sto Traps Triggered 7 | . 1 . 3 1 1 1 Indirectly . | . . . . . . . Trap Hack Attempts . | . . . . . . . Triggered . | . . . . . . . Disarmed . | . . . . . . . Reprogrammed . | . . . . . . . Reused . | . . . . . . . Traps Extracted . | . . . . . . . Installed 5 | . . 5 . . . . Triggered . | . . . . . . . Machines | -11 -10 -10 -9 -9 -8 -8 ---------- Run | Jun Mat Min Mat Min Mat Sto Machines Disabled 13 | . 3 4 1 . 2 3 Max in Single Turn 3 | . 2 3 1 . 1 1 Machines Repaired . | . . . . . . . Machines Sabotaged . | . . . . . . . Overloaded Fab Kills . | . . . . . . . Hacking | -11 -10 -10 -9 -9 -8 -8 --------- Run | Jun Mat Min Mat Min Mat Sto Machines Accessed 44 | . 6 1 14 1 16 6 Terminals 34 | . 5 1 11 . 12 5 Fabricators . | . . . . . . . Repair Stations 5 | . 1 . 1 . 2 1 Recycling Units . | . . . . . . . Scanalyzers 4 | . . . 2 . 2 . Garrison Access . | . . . . . . . Total Hacks 144 | . 21 4 39 1 54 25 Successful 75 | . 15 2 18 1 25 14 Failed 67 | . 5 2 20 . 29 11 Catastrophic 17 | . 2 . 6 . 7 2 Database Lockouts 2 | . 1 . 1 . . . Manual 69 | . 14 4 12 . 25 14 Terminals 114 | . 19 4 30 . 40 21 Fabricators . | . . . . . . . Repair Stations 19 | . 2 . 5 . 8 4 Recycling Units . | . . . . . . . Scanalyzers 10 | . . . 4 . 6 . Garrison Access . | . . . . . . . Terminal Hacks 37 | . 9 1 9 1 10 7 Part Schematic 6 | . 1 1 2 . 1 1 Robot Analysis 4 | . 1 . 1 . 1 1 Open Door 1 | . . . . 1 . . Level Access Points 2 | . . . . . 1 1 Terminal Index 2 | . 1 . 1 . . . Alert Level 2 | . 1 . . . . 1 Unreport Threat 3 | . 1 . . . 1 1 Maintenance Status 1 | . . . . . 1 . Reinforcement Status 1 | . . . . . 1 . Hauler Manifests 7 | . 2 . 2 . 2 1 Registered Components 2 | . . . 1 . 1 . Registered Prototypes 2 | . 1 . 1 . . . Zone Layout 4 | . 1 . 1 . 1 1 Fabricator Hacks . | . . . . . . . Repair Station Hacks 16 | . 2 . 4 . 6 4 Scan Component 8 | . 1 . 2 . 3 2 Repair 8 | . 1 . 2 . 3 2 Recycling Unit Hacks . | . . . . . . . Scanalyzer 7 | . . . 2 . 5 . Insert Component 3 | . . . 1 . 2 . Analyze 4 | . . . 1 . 3 . Garrison Access Hacks . | . . . . . . . Unauthorized Hacks 15 | . 4 1 3 . 4 3 Terminals 15 | . 4 1 3 . 4 3 Botnet 15 | . 4 1 3 . 4 3 Fabricators . | . . . . . . . Repair Stations . | . . . . . . . Recycling Units . | . . . . . . . Scanalyzers . | . . . . . . . Garrison Access . | . . . . . . . Data Cores Recovered . | . . . . . . . Used . | . . . . . . . Hacking Detections 40 | . 4 1 14 . 16 5 Full Trace Events 6 | . . 1 2 . 2 1 Feedback Events . | . . . . . . . Feedback Blocked . | . . . . . . . Robot Schematics Acquired . | . . . . . . . Robots Built . | . . . . . . . Authchips . | . . . . . . . Time . | . . . . . . . Total Robot Build Rating . | . . . . . . . Part Schematics Acquired 8 | . 1 1 3 . 2 1 Parts Built . | . . . . . . . Authchips . | . . . . . . . Time . | . . . . . . . Total Part Build Rating . | . . . . . . . Parts Repaired 8 | . 1 . 2 . 3 2 Time 287 | . 26 . 26 . 140 95 Parts Recycled . | . . . . . . . Recycled Matter . | . . . . . . . Retrieved Matter . | . . . . . . . Retrieved Components . | . . . . . . . Parts Scanalyzed 2 | . . . 1 . 1 . Part Schematics Acquired 2 | . . . 1 . 1 . Parts Damaged 2 | . . . 1 . 1 . Bothacking | -11 -10 -10 -9 -9 -8 -8 ------------ Run | Jun Mat Min Mat Min Mat Sto Used RIF Installer . | . . . . . . . Robots Hacked . | . . . . . . . Non-combat . | . . . . . . . Combat . | . . . . . . . Robot Hacks Applied . | . . . . . . . Relay Couplers Released . | . . . . . . . Fabnet Peak Effective % . | . . . . . . . Robots Rewired . | . . . . . . . Allies Hacked . | . . . . . . . Hacks Repelled . | . . . . . . . Allies | -11 -10 -10 -9 -9 -8 -8 -------- Run | Jun Mat Min Mat Min Mat Sto Total Allies 7 | . . 3 . 4 . . Largest Group 3 | . . 2 1 3 3 . Highest-Rated Group 55 | . . 43 31 55 55 . Highest-Rated Ally 31 | . . 31 31 31 31 . Total Orders 2 | . . . . 2 . . STAY 1 | . . . . 1 . . FOLLOW 1 | . . . . 1 . . Ally Attacks 54 | . . 9 20 13 12 . Total Damage 630 | . . 83 335 126 86 . Kills 9 | . . 2 5 . 2 . Allies Corrupted . | . . . . . . . Allies Melted . | . . . . . . . Intel | -11 -10 -10 -9 -9 -8 -8 ------- Run | Jun Mat Min Mat Min Mat Sto Robot Analysis Total 4 | . 1 . 1 . 1 1 Derelict Logs Recovered 3 | . . 1 . 2 . . Drone Launches . | . . . . . . . Drone Recoveries . | . . . . . . . Exploration | -11 -10 -10 -9 -9 -8 -8 ------------- Run | Jun Mat Min Mat Min Mat Sto Turns Passed 8201 | 55 853 1010 1731 720 3081 751 Spaces Moved 5153 | 40 706 681 1234 551 1628 313 Core 3 | 3 . . . . . . Treads 53 | . . . . . 53 . Legs . | . . . . . . . Wheels 5097 | 37 706 681 1234 551 1575 313 Hover . | . . . . . . . Flight . | . . . . . . . Fastest Speed 50 | 50 80 95 95 110 110 110 Average Speed 109 | 85 89 101 107 112 121 113 Slowest Speed 155 | 90 110 125 155 125 152 130 Overloaded Moves . | . . . . . . . Propulsion Burnouts . | . . . . . . . Robots Hopped . | . . . . . . . Cave-ins Triggered . | . . . . . . . Exploration Rate (%) 77 | 3 97 99 97 98 97 49 Regions Visited 6 Branch Regions 3 Pre-discovered Areas . | . . . . . . . Known Exits Taken 1 | . . . . . 1 . Unknown Exits Taken 5 | 1 1 1 1 1 . . Scrap Searched 3 | . . 1 . 2 . . Spaces Dug 26 | . . 2 . 1 21 2 Terrain Destroyed 189 | . 36 14 33 1 80 25 Melee 4 | . . 2 . 1 1 . Projectile 76 | . . . . . 51 25 AOE 109 | . 36 12 33 . 28 . Terrain Rammed . | . . . . . . . Walls Destroyed . | . . . . . . . Machines Disabled . | . . . . . . . Actions | -11 -10 -10 -9 -9 -8 -8 --------- Run | Jun Mat Min Mat Min Mat Sto Total 7084 | 57 861 952 1523 618 2505 568 Wait 1199 | 8 92 195 98 26 627 153 Move 5147 | 39 705 680 1233 550 1627 313 Hop . | . . . . . . . Pick Up 82 | 4 9 14 21 4 24 6 Fast Attach 55 | 6 7 3 18 3 17 1 Attach 31 | . 3 6 4 1 9 8 Detach 18 | . 3 . 8 . 5 2 Swap 70 | . 2 9 26 6 24 3 Drop 103 | . 6 10 42 7 35 3 Fire 365 | . 34 24 73 20 136 78 Melee 8 | . . 6 . 1 1 . Ram . | . . . . . . . Kick . | . . . . . . . Crush 1 | . . . . . . 1 Escape Stasis . | . . . . . . . Rewire . | . . . . . . . Trap 5 | . . 5 . . . . Miscellaneous . | . . . . . . . Route ------- -11/Junkyard -10/Materials (discovered 5 exits: *Mat x3 / *Min x2) -10/Mines (discovered 3 exits: *Mat x2 / [*Exi]) -9/Materials (discovered 5 exits: *Mat x3 / *Min x2) -9/Mines (discovered 3 exits: *Mat x2 / [*Zio]) -8/Materials (discovered 5 exits: *Fac x3 / *Sto x2) -8/Storage (discovered 1 exit: Fac) History --------- Turn | Location | Event 15 | -11/Junkyard | Discovered new exit (range 15) 56 | -11/Junkyard | Entered Materials 170 | -10/Materials | Discovered new exit (range 15) 307 | -10/Materials | Build established: Mutant 351 | -10/Materials | Repaired Wheel 406 | -10/Materials | Discovered new exit (range 15) 460 | -10/Materials | Discovered new exit (range 9) 595 | -10/Materials | Central database locked down 602 | -10/Materials | Discovered new exit (range 5) 827 | -10/Materials | Discovered new exit (range 7) 909 | -10/Materials | Entered Mines 912 | -10/Mines | Core integrity fell below 50% 960 | -10/Mines | A weapon hastily lodged in a ceiling crevice suddenly fell to the ground 969 | -10/Mines | Discovered new exit (range 11) 1102 | -10/Mines | Assembled infested the area 1213 | -10/Mines | Core integrity fell below 20% 1218 | -10/Mines | Met a Derelict shopkeep closing up shop 1243 | -10/Mines | Lost 6 parts (1p2n1u2w) 1406 | -10/Mines | Discovered new exit (range 16) 1635 | -10/Mines | Found a hidden stash of uninstalled traps 1651 | -10/Mines | Deemed a non-threat by the Exiles lab entrance 1651 | -10/Mines | Discovered new exit (range 5) 1811 | -10/Mines | Escorted by a lone wolf Derelict 1919 | -10/Mines | Entered Materials 1919 | -9/Materials | Accompanied by 1 ally 1919 | -9/Materials | Evolved 2 slots: Propulsion x2 2203 | -9/Materials | Discovered new exit (range 8) 2233 | -9/Materials | Build established: Scavenger-Mutant 2299 | -9/Materials | Discovered new exit (range 11) 2736 | -9/Materials | Discovered new exit (range 16) 3025 | -9/Materials | Repaired Lgt. Treads 3040 | -9/Materials | Repaired Lgt. Treads 3098 | -9/Materials | Discovered new exit (range 15) 3151 | -9/Materials | Central database locked down 3276 | -9/Materials | Discovered new exit (range 11) 3650 | -9/Materials | Entered Mines 3656 | -9/Mines | Assisted by bots powering up and referring to "LRC-V3" 3711 | -9/Mines | Received a Rocket Launcher from a helpful Derelict 3736 | -9/Mines | Discovered new exit (range 11) 3838 | -9/Mines | Build established: Mutant 3876 | -9/Mines | Found a damaged Exp. Sensor Array with a note attached 3879 | -9/Mines | Found Prototype Device 3890 | -9/Mines | Discovered new exit (range 5) 3895 | -9/Mines | A Derelict revealed a hidden shortcut to a safe place 4127 | -9/Mines | Learned location of 1 exit from Proximity Caves 4139 | -9/Mines | Learned Materials non-interactive machine intel 4142 | -9/Mines | Met a Derelict who couldn't figure out how to use a Trap Extractor 4285 | -9/Mines | Received a Mining Laser from a helpful Derelict 4370 | -9/Mines | Entered Materials 4370 | -8/Materials | Accompanied by 3 allies 4370 | -8/Materials | Evolved 2 slots: Utility x2 4371 | -8/Materials | Identified exit to Storage 4372 | -8/Materials | Loaded intel: 41 non-interactive machine locations 4388 | -8/Materials | Identified exit to Factory 4592 | -8/Materials | Identified Exp. Sensor Array 5013 | -8/Materials | Discovered exit to Storage (range 8) 5213 | -8/Materials | Core integrity fell below 50% 5409 | -8/Materials | Repaired Broken Hvy. Ion Engine 5443 | -8/Materials | Repaired Arm. Wheel 5488 | -8/Materials | Repaired Lyr. Light Armor Plating 7451 | -8/Materials | Entered Storage 7581 | -8/Storage | Core integrity fell below 20% 7603 | -8/Storage | Garrison activated, responded to threat 7641 | -8/Storage | Lost 3 parts (2n1u) 7830 | -8/Storage | Repaired Hvy. Ion Engine 7875 | -8/Storage | Repaired Arm. Huge Wheel 8173 | -8/Storage | Garrison activated, responded to threat 8202 | -8/Storage | Destroyed by Y-45 Defender with Beam Rifle Last Messages --------------- 08069_ R-06 Scavenger collects Lgt. Treads. 08070_ Acquired 10 matter. 08071_ R-06 Scavenger destroyed. 08075_ A-02 Transporter destroyed. 08098_ System corrupted: Energy discharge (-109). 08131_ LNFP,UMZIIPQ63 08173_ A-02 Transporter calls for garrison support. 08173_ ALERT: Activating Garrison Access S001. 08175_ U-05 Engineer builds a Wall. 08176_ A-02 Transporter destroyed. 08176_ R-06 Scavenger collects Ion Engine. 08178_ U-05 Engineer builds a Wall. 08184_ Dropped Lgt. Treads. 08185_ Dropped Arm. Wheel. 08190_ Terminal disabled. 08193_ K-01 Serf collects debris. 08196_ U-05 Engineer builds a Wall. 08196_ K-01 Serf collects debris. 08199_ U-05 Engineer builds a Wall. 08200_ K-01 Serf collects debris. Map ----- +----------------------------------------------------+ | ?????# #???????????? ????? #??? | | ?????# #???????????? ?????# ? #??? | | ?????# #?########+### ##??## ?? #### | | ##########+####### ###??# #???##/##+## # | | # ^+ #??# ###?#%= # # | | """!#* # """ #### #### ]# # | | """"[ [+%=*# """ + !%/*! !!# # | | " ! [#%=%# """ ####+## #### = # !# | | "=""!" + !=+ ## # #??# !!! # =[#= | | " """"[# # """ ## # #??# [%!!/ %*%/%= | | """ [%[# # """ ## # ##############!#[ | | [[ # # """ ## # ^ ## #?# # | | ! # # * ## # ## """"" ### #### | | ######### ################ ##! """"" ## #?? | | ????????# *#! """"" ## #?? | | ????????# [%+ % ## #?? | | ????????# #[ ! ### ##?? | | ????????# ##########"T"#T# # #?# #??? | | ????????# #????????####### # #?# #??? | | ????????# #??????????????#* ####T####/#?# #??? | | ????????# #?????###?######%##+######??# ### #??? | | ????????# #???### ########%# % !#???# ##"=##?? | | ????????# #???# % %+% +% ##### ##%==#?? | | ????????# #???# """""uuu#### """ / ===!#?? | | ????????##"###??# """" ==##?# """ ########! #?? | | ????????######??# """ !@#??# """ ]#??????## ##?? | | ????????# ##?## !%#??# #???????# #??? | | ????????# ##?# !!#??##" "###???????# #??? | | ????????#"""##?## k/#??##"R"#???????###+#### | | ????????T ##??# u #???#"""#???????# # | | ????????###+#########Y#;#################?# # | | ??????? %% #?#""" # | | ??????? #?#"R # | | ??????? #?#""" # | | ????????#######################+##### #?# # | | ??????????????????????????# ??# #?##T##### | | ??????????????????????????# # #??##????? | | ??????????????????????????# # #????????? | | ??????????????????????????# # #????????? | | ??????????????????????????# # #????????? | | ??????????????????????????# # #??####??? | | ??????????????????????????# # #? ??? | | ??????????????????????????# + #?""" "??? | | ??????????????????????????########### # """ ""?? | | ????????????????????????????????????# # """ """ | | ????????????????????????????????????# + | | ????????????????????????????????????# # [!! | | ????????????????????????????????????# # [![ | | ????????????????????????????????????# #? [![ | | ????????????????????????????????????# #?######## | +----------------------------------------------------+ Best States ------------- Heat Dissipation 59 Energy Generation 14 Energy Capacity 280 Matter Stores 300 Matter Capacity 300 Sight Range 16 Terrain Scan Density 10 Armor Coverage 600 Evasion (%) 44 Recoil Reduction 4 Particle Charging 15 Offensive Hacking 10 Item Schematics ----------------- Huge Storage Unit | -10/Materials | Hacked Hcp. Storage Unit | -10/Mines | Hacked Hvy. Ion Engine | -9/Materials | Scanalyzed Arm. Wheel | -9/Materials | Hacked Cargo Storage Unit | -9/Materials | Hacked Exp. Sensor Array | -8/Materials | Scanalyzed Hcp. Battery | -8/Materials | Hacked Arm. Treads | -8/Storage | Hacked Robot Schematics ------------------ None Fabricated ------------ Nothing Alien Tech Used ----------------- None Achievements -------------- None Challenges ------------ None Game ------ Seed NuclearCouplerChip Manual? 0 Play Time 01:27:44 Cumulative 171.5 hours Start 2023.04.09 @ 14:54:09 End 2023.04.09 @ 16:25:43 Sessions 1 Manual Loads 0 Difficulty Rogue Special Mode None Game No. 91 Rogue 91 Adventurer 0 Explorer 0 Win Type - Total 2 Types 2/0/0/0/0/0/0/0/0 Lore% 52 Gallery% 65 Achievement% 54 Wizard Run 0 Options --------- ASCII 0 Keyboard 1 Movement Vi Keybinds 0 Fullscreen 1 Font 12/Smallcaps Map View 83x54 Tactical HUD 1 Map Filters NONE Filters NONE Steam 1 RUN: c54e225d-ed15-4ded-85fd-2e2d62682963